bitfinex-derivatives/quotes_BTCF0:USTF0_20251125
["timestamp","ask_amount","ask_price","bid_price","bid_amount"]
[1764097695879,0.3685608,87000.0,86999.0,7e-08]
[1764097695880,0.2488808,87000.0,86999.0,7e-08]
[1764097696578,0.0115022,86989.0,86988.0,0.10312615]
[1764097696877,0.2374634,86980.0,86979.0,0.46392615]
[1764097697178,0.1903539,86976.0,86975.0,0.10312615]
[1764097697375,0.1903539,86976.0,86975.0,0.08384]
[1764097698377,0.17885,86974.0,86973.0,0.10312615]
[1764097698777,0.1903543,86973.0,86972.0,0.46392615]
[1764097698975,0.1903543,86973.0,86972.0,0.54776615]
[1764097699170,0.1903543,86973.0,86972.0,0.63440615]
[1764097699369,0.1903543,86973.0,86972.0,0.53128]
[1764097699983,0.1913543,86973.0,86972.0,0.53128]
[1764097700181,0.09244,86973.0,86972.0,0.5427845]
[1764097700382,0.001,86973.0,86972.0,0.53128]
[1764097700777,0.09344,86973.0,86972.0,0.53128]
[1764097701673,0.18085,86973.0,86972.0,0.53128]
[1764097702181,0.18085,86973.0,86972.0,0.17048]
[1764097702372,0.17885,86970.0,86969.0,0.10312615]
[1764097702776,0.17885,86968.0,86967.0,0.27377852]
[1764097703883,0.09144,86968.0,86967.0,0.27377852]
[1764097704085,0.09144,86968.0,86967.0,0.17065237]
[1764097704277,0.09144,86968.0,86967.0,0.2738277]
[1764097704484,0.09144,86968.0,86967.0,0.17065237]
[1764097704879,0.09244,86968.0,86967.0,0.17065237]
[1764097705079,0.17985,86968.0,86967.0,0.27384578]
[1764097705285,0.17985,86968.0,86967.0,0.17065237]
[1764097705783,0.001,86968.0,86967.0,0.17065237]
[1764097706078,0.09244,86968.0,86967.0,0.22355237]
[1764097706584,0.09244,86968.0,86967.0,0.32675794]
[1764097706975,0.17985,86968.0,86967.0,0.10337794]
[1764097707182,0.17885,86959.0,86950.0,0.0529]
[1764097707495,0.0115066,86956.0,86955.0,0.1706064]
[1764097708773,0.1029466,86956.0,86955.0,0.1706064]
[1764097708979,0.0115066,86956.0,86955.0,0.18598938]
[1764097709190,0.1029466,86956.0,86955.0,0.18598938]
[1764097709381,0.0115066,86956.0,86955.0,0.18598938]
[1764097710482,0.1029466,86956.0,86955.0,0.18598938]
[1764097711284,0.18232,86958.0,86955.0,0.01550938]
[1764097711482,0.18232,86958.0,86932.0,0.1196]
[1764097711483,0.36117,86958.0,86932.0,0.1196]
[1764097711696,0.36117,86958.0,86920.0,0.00999999]
[1764097711697,0.011516,86885.0,86884.0,2e-08]
[1764097711987,0.011516,86885.0,86878.0,0.20616506]
[1764097711988,0.0115168,86879.0,86878.0,0.17048]
[1764097712491,0.01160406,86879.0,86878.0,0.17048]
[1764097712691,0.01160406,86879.0,86877.0,0.0529]
[1764097712985,0.72040282,86878.0,86877.0,0.04538321]
[1764097713186,0.72040282,86878.0,86868.0,0.0529]
[1764097713187,0.0115181,86869.0,86868.0,0.0529]
[1764097713390,0.3713181,86869.0,86868.0,0.0529]
[1764097713689,0.0115205,86851.0,86850.0,0.13674]
[1764097713890,0.0115217,86842.0,86840.0,0.0529]
[1764097714098,0.3598,86841.0,86840.0,0.0529]
[1764097714281,0.3598,86841.0,86839.0,0.00012144]
[1764097714282,0.0115219,86840.0,86839.0,6e-08]
[1764097714690,0.00999999,86830.0,86786.0,0.37232259]
[1764097714892,0.0115259,86810.0,86809.0,0.17048]
[1764097715190,0.0115259,86810.0,86801.0,0.0529]
[1764097715191,0.0115267,86804.0,86801.0,0.0529]
[1764097715388,0.0115267,86805.0,86804.0,0.22795]
[1764097715791,0.37245826,86805.0,86804.0,0.22795]
[1764097715992,0.36093156,86805.0,86804.0,0.21795]
[1764097716188,0.22267156,86805.0,86804.0,0.61795]
[1764097716382,0.22267156,86805.0,86804.0,0.16048]
[1764097716582,0.08641156,86805.0,86804.0,0.16048]
[1764097716996,0.08641156,86805.0,86804.0,0.15148]
[1764097717597,0.3608,86810.0,86809.0,0.17048]
[1764097717792,0.00017278,86817.0,86816.0,0.17048]
[1764097717995,0.36097278,86817.0,86816.0,0.17048]
[1764097718691,0.36107503,86817.0,86816.0,0.17048]
[1764097718995,0.36107503,86817.0,86816.0,0.17339773]
[1764097719292,0.35165322,86817.0,86816.0,0.58492283]
[1764097719490,0.0115208,86849.0,86839.0,0.08664]
[1764097719690,0.0115228,86834.0,86819.0,0.09346366]
[1764097719893,0.00999999,86840.0,86824.0,0.3608]
[1764097719894,0.0115225,86836.0,86824.0,0.3608]
[1764097720088,0.3608,86845.0,86824.0,0.3608]
[1764097720089,0.3608,86845.0,86844.0,0.08384]
[1764097720294,0.17885,86834.0,86830.0,0.00291773]
[1764097720500,0.3608,86838.0,86833.0,0.17048]
[1764097720701,0.0115225,86836.0,86835.0,0.08384]
[1764097720903,0.0115218,86841.0,86837.0,0.08384]
[1764097721107,0.0115218,86841.0,86839.0,0.00291773]
[1764097721603,0.0115218,86841.0,86840.0,0.17235]
[1764097722001,0.0115218,86841.0,86840.0,0.08527]
[1764097722299,0.0115218,86841.0,86840.0,0.17526773]
[1764097723195,0.0115218,86841.0,86840.0,0.00291773]
[1764097723196,0.0975318,86841.0,86840.0,0.00291773]
[1764097724105,0.0975318,86841.0,86840.0,0.08818773]
[1764097724605,0.53244502,86841.0,86840.0,0.00291773]
[1764097727899,0.36317502,86841.0,86840.0,0.17526773]
[1764097728296,0.35165322,86841.0,86840.0,0.17679497]
[1764097728601,0.35165322,86841.0,86840.0,0.22676497]
[1764097728795,3.22e-06,86841.0,86840.0,0.58756497]
[1764097729306,3.22e-06,86841.0,86840.0,0.53759497]
[1764097730110,0.3608,86855.0,86852.0,0.17235]
[1764097730303,0.0115198,86857.0,86852.0,0.17679497]
[1764097730502,0.00999999,86860.0,86852.0,0.17679497]
[1764097730898,0.3608,86863.0,86862.0,0.17235]
[1764097731100,0.0115184,86867.0,86866.0,0.17235]
[1764097731408,0.0115169,86879.0,86841.0,0.53315]
[1764097731409,0.0115217,86842.0,86841.0,0.53315]
[1764097732311,0.1807917,86842.0,86841.0,0.53315]
[1764097732612,0.1807917,86842.0,86841.0,0.26543985]
[1764097733014,0.1807917,86842.0,86841.0,0.17835985]
[1764097733308,0.1807927,86834.0,86833.0,0.36107509]
[1764097733504,0.1807927,86834.0,86833.0,0.00027509]
[1764097733705,0.1807927,86834.0,86833.0,0.09112494]
[1764097734005,0.1807927,86834.0,86833.0,0.00027509]
[1764097734200,0.0115227,86834.0,86833.0,0.17262509]
[1764097734502,0.3608,86839.0,86838.0,0.08527]
[1764097734811,0.3723221,86839.0,86838.0,0.08527]
[1764097735013,0.1807927,86834.0,86833.0,0.00027509]
[1764097736704,0.1807927,86834.0,86833.0,0.08554509]
[1764097737114,0.1807927,86834.0,86833.0,0.00027509]
[1764097738203,0.1807927,86834.0,86833.0,0.17262509]
[1764097738407,0.1807927,86834.0,86833.0,0.08554509]
[1764097739307,0.1807927,86834.0,86833.0,0.00027509]
[1764097739507,0.46291,86815.0,86814.0,0.3608]
[1764097739810,0.1482,86820.0,86794.0,0.22197]
[1764097739811,0.011528,86795.0,86794.0,0.22197]
[1764097740011,0.0115286,86791.0,86779.0,0.01153]
[1764097740318,0.0115289,86788.0,86787.0,0.44394]
[1764097740612,0.0115289,86788.0,86779.0,0.01590945]
[1764097740613,0.46291,86787.0,86779.0,0.01590945]
[1764097740816,0.2431599,86780.0,86779.0,0.01590945]
[1764097741006,0.14828313,86788.0,86779.0,0.23787945]
[1764097741207,0.2431596,86783.0,86782.0,0.22197]
[1764097741413,0.23163,86780.0,86779.0,0.33062093]
[1764097741612,8.313e-05,86788.0,86787.0,0.44394]
[1764097741807,8.313e-05,86788.0,86787.0,0.80474]
[1764097742015,8.313e-05,86788.0,86787.0,1.20474]
[1764097742214,8.313e-05,86788.0,86787.0,0.80474]
[1764097742903,0.0115281,86794.0,86787.0,0.80474]
[1764097743112,0.00017278,86796.0,86795.0,0.46254]
[1764097743810,0.00999999,86810.0,86800.0,0.0115272]
[1764097744015,0.3608,86818.0,86810.0,0.46254]
[1764097744223,0.0115257,86812.0,86810.0,0.46254]
[1764097745416,0.3608,86818.0,86802.0,0.00017278]
[1764097745417,0.0115266,86806.0,86805.0,0.23012]
[1764097745617,0.46291,86803.0,86802.0,0.00017278]
[1764097746110,0.46291,86803.0,86802.0,0.23029278]
[1764097746307,0.0115266,86806.0,86802.0,0.46271278]
[1764097746913,0.46291,86803.0,86802.0,0.00017278]
[1764097747116,0.82371,86803.0,86802.0,0.00017278]
[1764097747306,0.46291,86803.0,86802.0,0.00017278]
[1764097747507,0.46291,86803.0,86802.0,0.23029278]
[1764097747718,0.0115261,86809.0,86805.0,0.46254]
[1764097748113,0.3723256,86813.0,86805.0,0.46254]
[1764097748312,0.011526,86810.0,86809.0,0.23012]
[1764097748712,0.243156,86810.0,86809.0,0.23012]
[1764097749514,0.0115259,86811.0,86810.0,0.46254]
[1764097749709,0.3608,86813.0,86810.0,0.23242]
[1764097749916,0.0115249,86818.0,86817.0,0.46254]
[1764097750522,0.0115249,86818.0,86808.0,0.3723262]
[1764097750523,0.0115258,86812.0,86811.0,0.46254]
[1764097752417,0.011525,86817.0,86816.0,0.45652]
[1764097752823,0.0115261,86809.0,86808.0,0.83256]
[1764097753022,0.0115261,86809.0,86808.0,0.56236884]
[1764097754623,0.00017278,86819.0,86808.0,0.56236884]
[1764097754624,0.2465953,86815.0,86814.0,0.47176]
[1764097755124,0.0115253,86815.0,86814.0,0.47176]
[1764097755322,0.0115249,86818.0,86812.0,0.0115256]
[1764097755621,0.2465949,86818.0,86817.0,0.47176]
[1764097755819,0.4729349,86818.0,86817.0,0.47176]
[1764097756129,0.0115249,86818.0,86817.0,0.47176]
[1764097756626,0.0115237,86827.0,86826.0,0.47176]
[1764097756926,0.3723236,86828.0,86827.0,0.47176]
[1764097757421,0.3608,86828.0,86827.0,0.47176]
[1764097757725,0.011523,86833.0,86832.0,0.47176]
[1764097758518,0.4729339,86825.0,86824.0,0.00017278]
[1764097761521,0.4729339,86825.0,86824.0,0.24553278]
[1764097762024,0.4729339,86825.0,86824.0,0.00017278]
[1764097763020,0.50474884,86825.0,86824.0,0.00017278]
[1764097763226,0.50474884,86825.0,86808.0,0.0911339]
[1764097763227,0.2465961,86809.0,86808.0,0.3364939]
[1764097763424,0.2465961,86809.0,86808.0,0.47176]
[1764097763826,0.4729361,86809.0,86808.0,0.24536]
[1764097764025,0.4729367,86804.0,86803.0,0.3608]
[1764097764326,0.59717,86796.0,86795.0,0.00017278]
[1764097764631,0.59717,86796.0,86795.0,0.24553278]
[1764097765230,0.59717,86796.0,86795.0,0.00017278]
[1764097766117,0.62905495,86796.0,86795.0,2.78e-06]
[1764097767320,0.59717,86796.0,86795.0,2.78e-06]
[1764097767726,0.78213,86796.0,86795.0,2.78e-06]
[1764097767922,0.59717,86796.0,86795.0,0.24536278]
[1764097768233,0.6578576,86798.0,86795.0,2.78e-06]
[1764097768630,0.13576,86796.0,86795.0,2.78e-06]
[1764097770235,0.13576,86796.0,86795.0,0.24536278]
[1764097770428,0.13576,86796.0,86795.0,0.48329068]
[1764097770621,0.3608,86805.0,86795.0,0.48329068]
[1764097770622,0.46141,86801.0,86800.0,0.4832872]
[1764097770826,0.46141,86801.0,86795.0,2.78e-06]
[1764097770827,0.3608,86805.0,86804.0,0.4832867]
[1764097771323,0.13576,86820.0,86811.0,0.4832858]
[1764097771524,0.23524278,86812.0,86811.0,0.8440858]
[1764097771735,0.00017278,86812.0,86811.0,0.8440858]
[1764097772133,0.3608,86826.0,86825.0,0.47176]
[1764097772134,0.59587,86826.0,86825.0,0.47176]
[1764097772431,0.0115228,86834.0,86826.0,0.0115238]
[1764097772637,0.46141,86827.0,86826.0,0.47176]
[1764097773928,0.46141,86819.0,86818.0,0.60633278]
[1764097774132,0.4729347,86819.0,86818.0,0.33720029]
[1764097774434,0.4729347,86819.0,86818.0,0.00017278]
[1764097776029,0.0115274,86799.0,86798.0,0.60616]
[1764097776337,0.46141,86799.0,86798.0,0.6176875]
[1764097776532,0.46141,86799.0,86798.0,0.8440875]
[1764097777239,0.23507,86799.0,86798.0,0.93496477]
[1764097777823,0.00017278,86807.0,86805.0,0.0115266]
[1764097778029,0.46141,86806.0,86805.0,0.2568866]
[1764097778532,0.0115284,86791.0,86790.0,0.00017278]
[1764097778736,0.4729384,86791.0,86790.0,0.00017278]
[1764097779336,0.46141,86791.0,86790.0,0.36097278]
[1764097779535,0.3608,86802.0,86801.0,0.47176]
[1764097779930,0.3608,86802.0,86801.0,0.42176]
[1764097780131,0.59587,86802.0,86801.0,0.42176]
[1764097780335,0.82221,86802.0,86801.0,0.4332871]
[1764097780530,0.46141,86799.0,86798.0,0.0115274]
[1764097780738,0.46141,86799.0,86798.0,0.4832874]
[1764097780941,0.13576,86801.0,86800.0,0.47176]
[1764097781135,0.37083,86801.0,86800.0,0.47176]
[1764097781336,0.47193,86799.0,86790.0,0.45286345]
[1764097781539,0.4834574,86799.0,86798.0,0.24605]
[1764097782042,0.47193,86791.0,86790.0,0.45286345]
[1764097782434,0.47193,86791.0,86790.0,0.69891345]
[1764097782739,0.13867,86796.0,86795.0,0.4956179]
[1764097782937,0.47193,86801.0,86800.0,0.4956171]
[1764097784138,0.6106,86801.0,86800.0,0.4956171]
[1764097784340,0.50655999,86820.0,86806.0,0.4956165]
[1764097784545,0.49656,86820.0,86806.0,0.4956165]
[1764097784730,0.50655999,86820.0,86806.0,0.4956165]
[1764097784935,0.0115249,86818.0,86806.0,0.4956165]
[1764097785133,0.49656,86820.0,86806.0,0.4956165]
[1764097785338,0.3608,86820.0,86819.0,0.4956147]
[1764097785538,0.47193,86828.0,86827.0,0.24605]
[1764097785838,0.22828,86828.0,86827.0,0.48409]
[1764097786041,0.00999999,86830.0,86818.0,0.0115248]
[1764097786346,0.22828,86824.0,86823.0,0.24605]
[1764097786943,0.2398034,86829.0,86828.0,0.48409]
[1764097787144,0.4834541,86824.0,86823.0,0.24605]
[1764097787541,0.47193,86824.0,86823.0,0.48409]
[1764097787743,0.00017278,86833.0,86832.0,0.495613]
[1764097788143,0.00017278,86833.0,86832.0,0.53912731]
[1764097788450,0.47193,86816.0,86815.0,0.21582278]
[1764097788751,0.47193,86816.0,86815.0,0.43147278]
[1764097788949,0.47193,86816.0,86815.0,0.00017278]
[1764097790955,0.47193,86798.0,86797.0,0.3608]
[1764097791555,0.0115273,86800.0,86788.0,0.7921]
[1764097791556,0.22828,86789.0,86788.0,0.7921]
[1764097791848,0.13867,86796.0,86788.0,0.8036288]
[1764097792050,0.13867,86796.0,86795.0,0.4313]
[1764097792355,0.00017278,86797.0,86796.0,0.4313]
[1764097792654,0.6221278,86796.0,86795.0,0.3608]
[1764097792954,0.0115286,86790.0,86789.0,0.21565]
[1764097793355,0.0115286,86790.0,86789.0,0.4313]
[1764097793851,0.011528,86795.0,86789.0,0.4313]
[1764097794055,0.00017278,86797.0,86796.0,0.4313]
[1764097794256,0.0115283,86792.0,86788.0,0.3608]
[1764097794455,0.4834587,86789.0,86788.0,0.3608]
[1764097794950,0.00017278,86797.0,86796.0,0.4313]
[1764097796150,0.22845278,86797.0,86796.0,0.4313]
[1764097796346,0.22845278,86797.0,86796.0,0.4428278]
[1764097796946,0.00017278,86797.0,86796.0,0.4428278]
[1764097797259,0.5452,86817.0,86816.0,0.21565]
[1764097797449,0.0115251,86816.0,86810.0,0.0115258]
[1764097797663,0.22828,86811.0,86810.0,0.0115258]
[1764097797877,0.47193,86811.0,86810.0,0.21565]
[1764097798176,0.6106,86808.0,86807.0,0.4428263]
[1764097798577,0.22828,86813.0,86812.0,0.2271757]
[1764097798967,0.22828,86813.0,86812.0,0.4428257]
[1764097799275,0.00017278,86816.0,86815.0,0.4313]
[1764097799276,0.47210278,86816.0,86815.0,0.4313]
[1764097799469,0.36695,86812.0,86811.0,0.4428257]
[1764097799664,0.02152599,86810.0,86808.0,0.0115261]
[1764097799871,0.4263,86809.0,86808.0,0.35686]
[1764097800066,0.4263,86809.0,86808.0,0.17843]
[1764097800264,0.4263,86803.0,86802.0,0.53923]
[1764097800476,0.4263,86803.0,86799.0,0.00017278]
[1764097800680,0.4263,86800.0,86799.0,0.00017278]
[1764097802276,0.4263,86800.0,86784.0,0.08994216]
[1764097802277,0.4263,86785.0,86784.0,0.08994216]
[1764097802576,0.4263,86785.0,86784.0,0.26837216]
[1764097802781,0.4378294,86785.0,86780.0,0.0143998]
[1764097803075,0.33618,86790.0,86789.0,0.35686]
[1764097803480,0.00017278,86791.0,86789.0,0.35686]
[1764097803678,0.00017278,86791.0,86790.0,0.3683886]
[1764097803879,0.00017278,86791.0,86790.0,0.35686]
[1764097804784,0.14866999,86820.0,86813.0,0.0115255]
[1764097804973,0.3608,86821.0,86820.0,0.35686]
[1764097805176,0.37079999,86830.0,86815.0,0.3608]
[1764097805485,0.3608,86839.0,86829.0,0.35686]
[1764097805687,0.3608,86839.0,86822.0,0.3608]
[1764097805688,0.4263,86837.0,86836.0,0.0115225]
[1764097805986,0.4263,86837.0,86825.0,0.00017278]
[1764097805987,0.3608,86839.0,86838.0,0.3683822]
[1764097806175,0.3608,86839.0,86838.0,0.35686]
[1764097806376,0.7871,86839.0,86838.0,0.35686]
[1764097806569,0.7871,86839.0,86830.0,0.0115232]
[1764097806776,0.7871,86839.0,86826.0,0.0115238]
[1764097807075,0.3723222,86839.0,86834.0,0.17843]
[1764097807275,0.3608,86839.0,86834.0,0.17843]
[1764097807678,0.4263,86826.0,86825.0,0.00017278]
[1764097808788,0.57011,86831.0,86830.0,0.35686]
[1764097809286,0.7871,86831.0,86830.0,0.17843]
[1764097809886,0.4263,86830.0,86829.0,0.0115233]
[1764097810083,0.4263,86830.0,86825.0,0.01169658]
[1764097810582,0.20931,86829.0,86828.0,0.0115235]
[1764097810983,0.3608,86831.0,86828.0,0.1899535]
[1764097811483,0.3608,86831.0,86830.0,0.42317]
[1764097811686,0.3608,86840.0,86839.0,0.4173021]
[1764097811886,0.3608,86840.0,86825.0,0.00017278]
[1764097811887,0.39328,86833.0,86825.0,0.00017278]
[1764097812185,0.0115224,86837.0,86831.0,0.2074631]
[1764097812489,0.0115221,86839.0,86831.0,0.2074631]
[1764097812888,0.0115227,86835.0,86831.0,0.19594]
[1764097813086,0.0115227,86835.0,86834.0,0.40578]
[1764097813590,0.00017278,86843.0,86842.0,0.40578]
[1764097813791,0.39345278,86843.0,86842.0,0.19594]
[1764097813987,0.4048026,86835.0,86834.0,0.09180724]
[1764097814188,0.39328,86835.0,86825.0,0.36097278]
[1764097814390,0.1963,86826.0,86825.0,0.55691278]
[1764097814693,0.3608,86839.0,86825.0,0.55691278]
[1764097814694,0.0115222,86838.0,86832.0,0.0115229]
[1764097815192,0.3608,86839.0,86837.0,0.40578]
[1764097815390,0.39328,86836.0,86835.0,0.0115225]
[1764097815886,0.39328,86836.0,86835.0,0.2074625]
[1764097816095,0.4048025,86836.0,86829.0,0.0115233]
[1764097816390,0.0115228,86834.0,86829.0,0.0115233]
[1764097816590,0.1963,86832.0,86831.0,0.417303]
[1764097816992,0.1963,86832.0,86831.0,0.40578]
[1764097817189,0.39328,86832.0,86831.0,0.40578]
[1764097818386,0.04757927,86832.0,86831.0,0.40578]
[1764097818588,0.0115223,86838.0,86832.0,0.12876]
[1764097818889,0.00017278,86843.0,86842.0,0.40578]
[1764097819087,0.1963,86839.0,86838.0,0.40578]
[1764097819289,0.3608,86839.0,86831.0,0.0115231]
[1764097819488,0.6390221,86839.0,86838.0,0.19594]
[1764097821091,0.6275,86839.0,86838.0,0.40578]
[1764097822798,0.2782226,86835.0,86834.0,0.12876]
[1764097823001,0.0115238,86826.0,86825.0,0.49932704]
[1764097823300,0.13335,86830.0,86829.0,0.4173033]
[1764097824498,0.2782238,86826.0,86825.0,0.09354704]
[1764097824698,0.2667,86826.0,86825.0,0.49932704]
[1764097824892,0.0115238,86827.0,86825.0,0.49932704]
[1764097825192,0.1448738,86827.0,86826.0,0.40578]
[1764097825390,0.2782238,86827.0,86826.0,0.40578]
[1764097825599,0.2782238,86827.0,86825.0,0.09354704]
[1764097825898,0.13335,86809.0,86808.0,0.10465]
[1764097826095,0.2667,86807.0,86801.0,0.12876]
[1764097826397,0.2782278,86796.0,86795.0,0.40578]
[1764097826696,0.6390278,86796.0,86795.0,0.4995092]
[1764097826888,0.2667,86796.0,86795.0,0.4995092]
[1764097827092,0.3608,86807.0,86795.0,0.4995092]
[1764097827093,0.2782269,86803.0,86802.0,0.19594]
[1764097827704,0.2782269,86803.0,86802.0,0.40578]
[1764097829605,0.13335,86803.0,86802.0,0.40578]
[1764097830096,0.00017278,86804.0,86803.0,0.4173069]
[1764097830798,0.3608,86807.0,86806.0,0.0115265]
[1764097831003,0.3608,86816.0,86815.0,0.4173053]
[1764097831592,0.3608,86830.0,86829.0,0.40578]
[1764097832699,0.6393633,86830.0,86829.0,0.40578]
[1764097833003,0.6393633,86830.0,86829.0,0.49844042]
[1764097833706,0.3608,86830.0,86829.0,0.49844042]
[1764097834191,0.00017278,86838.0,86837.0,0.40578]
[1764097840495,0.00017278,86838.0,86837.0,0.76658]
[1764097840696,0.55803141,86860.0,86837.0,0.76658]
[1764097840697,0.3608,86860.0,86859.0,0.40578]
[1764097841198,0.53902,86860.0,86859.0,0.40578]
[1764097841497,0.53902,86860.0,86845.0,0.12876]
[1764097841498,0.0115196,86858.0,86845.0,0.12876]
[1764097841707,0.0115211,86847.0,86846.0,0.40845]
[1764097842590,0.0115206,86850.0,86849.0,0.40845]
[1764097843201,0.3608,86851.0,86850.0,0.40845]
[1764097845505,0.00017278,86855.0,86854.0,0.4199701]
[1764097846202,0.00017278,86855.0,86854.0,0.40845]
[1764097846398,0.3608,86885.0,86872.0,0.0115176]
[1764097846599,0.2157561,86884.0,86883.0,0.40845]
[1764097846800,0.4111961,86884.0,86883.0,0.40845]
[1764097847009,0.4111961,86884.0,86883.0,0.35845]
[1764097847206,0.4111961,86884.0,86883.0,0.19892]
[1764097847510,0.39968,86881.0,86880.0,0.0115166]
[1764097847806,0.39968,86881.0,86880.0,0.2104366]
[1764097848999,0.39968,86881.0,86880.0,0.4199666]
[1764097849306,0.39968,86881.0,86880.0,0.40845]
[1764097850705,0.5253266,86880.0,86879.0,0.09231235]
[1764097850999,0.39968,86876.0,86875.0,0.00017267]
[1764097851202,0.39968,86876.0,86875.0,0.55989267]
[1764097851401,0.39968,86876.0,86875.0,0.76942267]
[1764097851402,0.58312,86876.0,86875.0,0.76942267]
[1764097851706,0.01168777,86892.0,86880.0,0.40845]
[1764097852012,0.39968,86887.0,86886.0,0.4199658]
[1764097852511,0.39985267,86892.0,86891.0,0.4199652]
[1764097853105,0.20441267,86892.0,86891.0,0.4199652]
[1764097853307,0.39985267,86892.0,86891.0,0.40845]
[1764097853495,0.39985267,86892.0,86861.0,0.0115191]
[1764097853496,0.20424,86877.0,86876.0,0.4199671]
[1764097853911,0.411196,86885.0,86884.0,0.40845]
[1764097854104,0.39985267,86892.0,86891.0,0.40845]
[1764097854305,0.20441267,86892.0,86891.0,0.76925]
[1764097854611,0.39985267,86892.0,86891.0,0.76925]
[1764097854806,0.0115169,86878.0,86877.0,0.40845]
[1764097855198,0.0115164,86883.0,86882.0,0.40845]
[1764097855402,0.39968,86891.0,86890.0,0.40845]
[1764097855603,0.39968,86891.0,86890.0,0.76925]
[1764097855806,0.4111952,86891.0,86890.0,0.76925]
[1764097857299,0.2157552,86891.0,86890.0,0.89154]
[1764097857510,0.0115152,86891.0,86890.0,0.89154]
[1764097857900,0.2157552,86891.0,86890.0,0.89154]
[1764097858105,0.4111952,86891.0,86890.0,0.76925]
[1764097858306,0.4111961,86884.0,86883.0,0.76925]
[1764097858607,0.4111961,86884.0,86875.0,0.50242213]
[1764097858608,0.4111972,86876.0,86875.0,0.50242213]
[1764097858810,0.0115172,86876.0,86875.0,0.50242213]
[1764097859114,0.0115164,86883.0,86882.0,0.40845]
[1764097859410,0.00017267,86892.0,86891.0,0.42185]
[1764097859411,0.22243767,86892.0,86891.0,0.42185]
[1764097859808,0.00017267,86892.0,86891.0,0.78265]
[1764097860610,0.00017267,86892.0,86891.0,0.7941652]
[1764097861120,0.0115139,86901.0,86900.0,0.57764]
[1764097861506,0.2222635,86904.0,86903.0,0.44824]
[1764097861702,0.4267,86909.0,86908.0,0.44824]
[1764097862218,0.4382139,86901.0,86900.0,0.80921267]
[1764097862616,0.4382139,86901.0,86900.0,0.93861267]
[1764097862617,0.0115139,86901.0,86900.0,0.93861267]
[1764097862818,0.2222639,86901.0,86900.0,0.93861267]
[1764097863017,0.2222639,86901.0,86900.0,0.80921267]
[1764097863217,0.4382139,86901.0,86900.0,0.80921267]
[1764097863710,0.2222639,86901.0,86900.0,0.80921267]
[1764097864011,0.0115139,86901.0,86900.0,0.93861267]
[1764097864419,0.4382139,86901.0,86900.0,0.80921267]
[1764097864818,0.4382139,86901.0,86900.0,0.44841267]
[1764097865212,0.0115139,86901.0,86900.0,0.57781267]
[1764097865414,0.0115139,86901.0,86900.0,0.67186158]
[1764097866122,0.3608,86929.0,86916.0,0.44824]
[1764097866422,0.0115116,86919.0,86916.0,0.80904]
[1764097866721,0.12916,86929.0,86916.0,0.82140895]
[1764097866914,0.12916,86929.0,86925.0,0.22531]
[1764097866915,0.4267,86926.0,86925.0,0.22531]
[1764097867218,0.0115117,86917.0,86916.0,0.82140895]
[1764097867425,0.4382117,86917.0,86916.0,0.82140895]
[1764097867718,0.0115131,86907.0,86906.0,0.80904]
[1764097868516,0.0115128,86909.0,86908.0,0.44824]
[1764097868821,0.00010108,86925.0,86908.0,0.44824]
[1764097868822,0.0115117,86918.0,86917.0,0.44824]
[1764097869825,0.00010108,86925.0,86924.0,0.44824]
[1764097869826,0.01161178,86925.0,86924.0,0.44824]
[1764097870023,0.01161178,86925.0,86924.0,0.80904]
[1764097870221,0.01161178,86925.0,86924.0,0.75904]
[1764097870524,0.00010108,86925.0,86924.0,0.75904]
[1764097870821,0.0115085,86942.0,86924.0,0.75904]
[1764097870822,0.583059,86938.0,86937.0,0.44824]
[1764097871023,0.011509,86938.0,86937.0,0.44824]
[1764097871319,0.434659,86938.0,86937.0,0.22531]
[1764097871522,0.434659,86938.0,86934.0,0.3608]
[1764097871523,0.4346594,86935.0,86934.0,0.3608]
[1764097871819,0.0115107,86925.0,86924.0,0.80287]
[1764097873021,0.33946348,86934.0,86933.0,0.44207]
[1764097873218,0.2220595,86934.0,86933.0,0.80287]
[1764097873418,0.0115095,86934.0,86933.0,0.86988]
[1764097873622,0.2220595,86934.0,86933.0,0.80287]
[1764097873811,0.21975438,86934.0,86933.0,0.80287]
[1764097874015,0.11740398,86943.0,86933.0,0.80287]
[1764097874213,0.2220591,86937.0,86936.0,0.44207]
[1764097874413,0.4346595,86934.0,86933.0,0.3608]
[1764097874612,0.4346595,86934.0,86924.0,0.3608]
[1764097874613,0.4346576,86948.0,86947.0,0.44207]
[1764097874818,0.4346576,86948.0,86931.0,0.45112799]
[1764097874819,0.434659,86938.0,86937.0,0.44207]
[1764097875319,0.40703189,86938.0,86937.0,0.44207]
[1764097875620,0.0115085,86942.0,86941.0,0.44207]
[1764097875816,0.4346585,86942.0,86941.0,0.3608]
[1764097876219,0.11740398,86947.0,86930.0,0.12745]
[1764097876220,0.0115097,86933.0,86932.0,0.44207]
[1764097876721,0.4346597,86933.0,86932.0,0.44207]
[1764097876917,0.55866,86930.0,86929.0,0.00017257]
[1764097877219,0.55866,86930.0,86903.0,0.3608]
[1764097877220,0.4346616,86918.0,86917.0,0.09053188]
[1764097877411,0.4346616,86918.0,86917.0,0.31490188]
[1764097877817,0.42315,86918.0,86917.0,0.22437]
[1764097878017,0.0115112,86921.0,86918.0,0.0115116]
[1764097878217,0.18316,86922.0,86910.0,0.08933]
[1764097878218,0.0115117,86918.0,86917.0,0.44207]
[1764097878422,0.7954617,86918.0,86917.0,0.22437]
[1764097879023,0.01168287,86928.0,86927.0,0.44207]
[1764097879224,0.22223287,86928.0,86927.0,0.44207]
[1764097879420,0.22223287,86928.0,86918.0,0.44207]
[1764097879421,0.4346616,86919.0,86918.0,0.44207]
[1764097880024,0.42315,86919.0,86918.0,0.44207]
[1764097880425,0.42315,86919.0,86918.0,0.4535816]
[1764097880623,0.42315,86919.0,86918.0,0.44207]
[1764097880827,0.0115112,86921.0,86920.0,0.44207]
[1764097881131,0.0115105,86927.0,86924.0,0.0115107]
[1764097881423,0.00017257,86928.0,86927.0,0.44207]
[1764097881626,0.01168287,86928.0,86927.0,0.44207]
[1764097881819,0.01168287,86928.0,86917.0,0.3608]
[1764097881820,0.4346616,86918.0,86917.0,0.80287]
[1764097882222,0.0115116,86918.0,86917.0,0.80287]
[1764097882427,0.22223287,86928.0,86927.0,0.44207]
[1764097882927,0.01168287,86928.0,86927.0,0.44207]
[1764097883125,0.00017257,86928.0,86927.0,0.44207]